[Event "Elite Hotels Open 2023"]
[Site "Elite Stadshotellet, Kungsgatan 6, Vaxjo, Sweden"]
[Date "2023.02.10"]
[Round "1.7"]
[White "Kvarby, Anders"]
[Black "Hector, Jonny"]
[Result "0-1"]
[TimeControl "15 minutes + 5 seconds per move from move one (Round 1 - 4) / 90 minutes + 30 seconds per move from move one (Round 5 - 8)"]
[BlackTitle "GM"]
[WhiteFideId "1746596"]
[BlackFideId "1700090"]
[WhiteElo "1811"]
[BlackElo "2466"]

1. d4 {[%clk 00:15:08]} d5 {[%clk 00:15:07]} {[%emt 00:00:03]} 2. Bf4 {[%clk
00:15:10]} {[%emt 00:00:03]} c5 {[%clk 00:15:07]} {[%emt 00:00:04]} 3. e3
{[%clk 00:15:11]} {[%emt 00:00:06]} Nc6 {[%clk 00:15:09]} {[%emt 00:00:02]} 4.
Nf3 {[%clk 00:15:03]} {[%emt 00:00:13]} Nf6 {[%clk 00:15:10]} {[%emt 00:00:03]}
5. Nbd2 {[%clk 00:14:40]} {[%emt 00:00:30]} cxd4 {[%clk 00:15:12]} {[%emt
00:00:03]} 6. exd4 {[%clk 00:14:40]} {[%emt 00:00:05]} Bf5 {[%clk 00:15:13]}
{[%emt 00:00:03]} 7. Bb5 {[%clk 00:14:00]} {[%emt 00:00:46]} Rc8 {[%clk
00:15:14]} {[%emt 00:00:03]} 8. O-O {[%clk 00:13:32]} {[%emt 00:00:34]} a6
{[%clk 00:15:02]} {[%emt 00:00:16]} 9. Bxc6+ {[%clk 00:13:31]} {[%emt
00:00:06]} Rxc6 {[%clk 00:15:04]} {[%emt 00:00:03]} 10. c3 {[%clk 00:13:22]}
{[%emt 00:00:14]} e6 {[%clk 00:14:41]} {[%emt 00:00:28]} 11. Ne5 {[%clk
00:12:50]} Rc8 {[%clk 00:14:42]} {[%emt 00:00:41]} 12. Qa4+ {[%clk 00:12:28]}
Nd7 {[%clk 00:14:42]} {[%emt 00:00:32]} 13. Rfe1 {[%clk 00:12:00]} f6 {[%clk
00:14:27]} {[%emt 00:00:53]} 14. Nxd7 {[%clk 00:11:40]} Qxd7 {[%clk 00:14:29]}
{[%emt 00:00:28]} 15. Qxd7+ {[%clk 00:11:26]} Kxd7 {[%clk 00:14:30]} {[%emt
00:00:23]} 16. f3 {[%clk 00:11:14]} {[%emt 00:00:17]} g5 {[%clk 00:14:26]}
{[%emt 00:00:09]} 17. Bg3 {[%clk 00:11:07]} {[%emt 00:00:13]} h5 {[%clk
00:14:14]} {[%emt 00:00:16]} 18. h4 {[%clk 00:10:39]} {[%emt 00:00:34]} Rg8
{[%clk 00:13:48]} {[%emt 00:00:30]} 19. hxg5 {[%clk 00:09:45]} {[%emt
00:00:59]} Rxg5 {[%clk 00:13:49]} {[%emt 00:00:03]} 20. Bh4 {[%clk 00:09:35]}
{[%emt 00:00:15]} Rg6 {[%clk 00:13:49]} {[%emt 00:00:06]} 21. Nf1 {[%clk
00:09:32]} {[%emt 00:00:08]} Bh6 {[%clk 00:12:46]} {[%emt 00:01:07]} 22. Ne3
{[%clk 00:08:40]} {[%emt 00:00:58]} Rcg8 {[%clk 00:12:43]} {[%emt 00:00:08]} 23.
g3 {[%clk 00:08:12]} {[%emt 00:00:34]} Bf4 {[%clk 00:12:11]} {[%emt 00:00:35]}
24. Nf1 {[%clk 00:06:49]} {[%emt 00:01:30]} Bd3 {[%clk 00:10:20]} {[%emt
00:01:55]} 25. Kf2 {[%clk 00:06:08]} {[%emt 00:00:46]} Bg5 {[%clk 00:09:12]}
{[%emt 00:01:13]} 26. Ne3 {[%clk 00:05:06]} {[%emt 00:01:08]} Bh6 {[%clk
00:08:34]} {[%emt 00:00:43]} 27. Rad1 {[%clk 00:04:51]} {[%emt 00:00:20]} Bb5
{[%clk 00:08:36]} {[%emt 00:00:02]} 28. b3 {[%clk 00:04:43]} {[%emt 00:00:13]}
a5 {[%clk 00:08:33]} {[%emt 00:00:09]} 29. c4 {[%clk 00:04:41]} {[%emt
00:00:08]} Bxe3+ {[%clk 00:08:24]} {[%emt 00:00:13]} 30. Kxe3 {[%clk 00:04:41]}
{[%emt 00:00:04]} dxc4 {[%clk 00:08:26]} {[%emt 00:00:03]} 31. d5 {[%clk
00:04:21]} {[%emt 00:00:25]} e5 {[%clk 00:08:03]} {[%emt 00:00:27]} 32. Rc1
{[%clk 00:03:52]} {[%emt 00:00:36]} cxb3 {[%clk 00:07:54]} {[%emt 00:00:15]} 33.
axb3 {[%clk 00:03:54]} {[%emt 00:00:02]} Kd6 {[%clk 00:07:40]} {[%emt
00:00:18]} 34. Ke4 {[%clk 00:03:28]} {[%emt 00:00:32]} Bd7 {[%clk 00:07:35]}
{[%emt 00:00:09]} 35. Red1 {[%clk 00:03:11]} {[%emt 00:00:22]} f5+ {[%clk
00:07:34]} {[%emt 00:00:06]} 36. Ke3 {[%clk 00:03:06]} {[%emt 00:00:11]} Rxg3
{[%clk 00:06:25]} {[%emt 00:01:13]} 37. Bxg3 {[%clk 00:03:06]} {[%emt
00:00:05]} Rxg3 {[%clk 00:06:28]} {[%emt 00:00:02]} 38. Kf2 {[%clk 00:02:50]}
{[%emt 00:00:22]} f4 {[%clk 00:05:39]} {[%emt 00:00:53]} 39. Ra1 {[%clk
00:02:43]} {[%emt 00:00:12]} b6 {[%clk 00:05:38]} {[%emt 00:00:06]} 40. Rh1
{[%clk 00:02:39]} {[%emt 00:00:09]} Rg5 {[%clk 00:05:08]} {[%emt 00:00:34]} 41.
Rad1 {[%clk 00:02:23]} {[%emt 00:00:23]} Bf5 {[%clk 00:04:45]} {[%emt
00:00:27]} 42. Rd2 {[%clk 00:02:15]} {[%emt 00:00:14]} e4 {[%clk 00:04:10]}
{[%emt 00:00:40]} 43. fxe4 {[%clk 00:02:19]} {[%emt 00:00:02]} Bxe4 {[%clk
00:04:13]} 44. Rh2 {[%clk 00:02:21]} {[%emt 00:00:02]} Bxd5 {[%clk 00:04:13]}
{[%emt 00:00:05]} 45. Rh4 {[%clk 00:02:13]} {[%emt 00:00:13]} f3 {[%clk
00:04:07]} {[%emt 00:00:11]} 46. Rhd4 {[%clk 00:01:58]} {[%emt 00:00:20]} Kc5
{[%clk 00:04:06]} {[%emt 00:00:07]} 47. R4d3 {[%clk 00:01:59]} {[%emt
00:00:04]} Rg2+ {[%clk 00:03:49]} {[%emt 00:00:21]} 48. Ke1 {[%clk 00:01:47]}
{[%emt 00:00:15]} Rxd2 {[%clk 00:03:47]} {[%emt 00:00:09]} 49. Kxd2 {[%clk
00:01:48]} {[%emt 00:00:06]} h4 {[%clk 00:03:44]} {[%emt 00:00:07]} 0-1

[Event "Elite Hotels Open 2023"]
[Site "Elite Stadshotellet, Kungsgatan 6, Vaxjo, Sweden"]
[Date "2023.02.10"]
[Round "1.8"]
[White "Jepson, Christian"]
[Black "Frank, Anton"]
[Result "1-0"]
[TimeControl "15 minutes + 5 seconds per move from move one (Round 1 - 4) / 90 minutes + 30 seconds per move from move one (Round 5 - 8)"]
[WhiteTitle "IM"]
[WhiteFideId "1701185"]
[BlackFideId "1752383"]
[WhiteElo "2395"]
[BlackElo "1807"]

1. d4 {[%clk 00:15:06]} {[%emt 00:00:04]} Nf6 {[%clk 00:15:06]} {[%emt
00:00:04]} 2. c4 {[%clk 00:15:02]} {[%emt 00:00:09]} g6 {[%clk 00:15:06]}
{[%emt 00:00:05]} 3. Nc3 {[%clk 00:15:04]} {[%emt 00:00:03]} Bg7 {[%clk
00:15:07]} {[%emt 00:00:04]} 4. e4 {[%clk 00:15:07]} {[%emt 00:00:02]} d6
{[%clk 00:15:10]} {[%emt 00:00:02]} 5. Be2 {[%clk 00:15:07]} {[%emt 00:00:05]}
O-O {[%clk 00:15:11]} {[%emt 00:00:04]} 6. f4 {[%clk 00:14:56]} {[%emt
00:00:17]} c5 {[%clk 00:14:17]} {[%emt 00:00:58]} 7. d5 {[%clk 00:14:59]}
{[%emt 00:00:03]} e6 {[%clk 00:11:59]} {[%emt 00:02:21]} 8. Nf3 {[%clk
00:15:02]} {[%emt 00:00:03]} exd5 {[%clk 00:11:56]} {[%emt 00:00:09]} 9. cxd5
{[%clk 00:15:05]} {[%emt 00:00:02]} b5 {[%clk 00:08:56]} {[%emt 00:03:04]} 10.
e5 {[%clk 00:14:31]} {[%emt 00:00:38]} dxe5 {[%clk 00:08:42]} {[%emt 00:00:19]}
11. fxe5 {[%clk 00:14:35]} {[%emt 00:00:02]} Ng4 {[%clk 00:08:26]} {[%emt
00:00:21]} 12. Bg5 {[%clk 00:13:41]} {[%emt 00:00:59]} Qa5 {[%clk 00:07:22]}
{[%emt 00:01:08]} 13. O-O {[%clk 00:12:22]} {[%emt 00:01:24]} Nxe5 {[%clk
00:05:54]} {[%emt 00:01:33]} 14. Bxb5 {[%clk 00:08:59]} {[%emt 00:03:29]} Nbd7
{[%clk 00:02:56]} {[%emt 00:03:02]} 15. Nxe5 {[%clk 00:08:15]} {[%emt
00:00:50]} Nxe5 {[%clk 00:02:28]} {[%emt 00:00:33]} 16. Be7 {[%clk 00:07:03]}
{[%emt 00:01:17]} Bg4 {[%clk 00:02:24]} {[%emt 00:00:08]} 17. Qa4 {[%clk
00:06:37]} {[%emt 00:00:32]} Qxa4 {[%clk 00:01:55]} {[%emt 00:00:35]} 18. Bxa4
{[%clk 00:04:45]} {[%emt 00:01:57]} Rfb8 {[%clk 00:01:59]} 19. Ne4 {[%clk
00:03:51]} {[%emt 00:00:59]} Rxb2 {[%clk 00:01:36]} {[%emt 00:00:27]} 20. Nf6+
{[%clk 00:03:41]} {[%emt 00:00:15]} Kh8 {[%clk 00:00:52]} {[%emt 00:00:50]} 21.
Rae1 {[%clk 00:03:13]} {[%emt 00:00:32]} Nd3 {[%clk 00:00:08]} {[%emt
00:00:49]} 22. Nxg4 {[%clk 00:03:08]} {[%emt 00:00:11]} Nxe1 {[%clk 00:00:12]}
23. Rxe1 {[%clk 00:03:10]} {[%emt 00:00:03]} Rxa2 {[%emt 00:00:09]} 24. Bc6
{[%clk 00:03:09]} {[%emt 00:00:06]} Rc8 {[%clk 00:00:11]} {[%emt 00:00:02]} 25.
Bxc5 {[%clk 00:02:56]} {[%emt 00:00:18]} Rc2 {[%clk 00:00:09]} {[%emt
00:00:07]} 26. Bxa7 {[%clk 00:02:47]} {[%emt 00:00:14]} R2xc6 {[%emt 00:00:08]}
27. dxc6 {[%clk 00:02:50]} Bc3 {[%clk 00:00:09]} {[%emt 00:00:03]} 28. Rc1
{[%clk 00:02:46]} {[%emt 00:00:09]} Rxc6 {[%clk 00:00:13]} {[%emt 00:00:02]} 29.
Rxc3 {[%clk 00:02:49]} 1-0

[Event "Elite Hotels Open 2023"]
[Site "Elite Stadshotellet, Kungsgatan 6, Vaxjo, Sweden"]
[Date "2023.02.10"]
[Round "1.9"]
[White "Karavidas, Georg"]
[Black "Trost, Edvin"]
[Result "0-1"]
[TimeControl "15 minutes + 5 seconds per move from move one (Round 1 - 4) / 90 minutes + 30 seconds per move from move one (Round 5 - 8)"]
[BlackTitle "FM"]
[WhiteFideId "1766805"]
[BlackFideId "1729519"]
[WhiteElo "1803"]
[BlackElo "2364"]

1. e4 {[%clk 00:15:08]} g6 {[%clk 00:14:55]} {[%emt 00:00:16]} 2. d4 {[%clk
00:15:06]} {[%emt 00:00:07]} Bg7 {[%clk 00:14:56]} {[%emt 00:00:04]} 3. Nc3
{[%clk 00:14:45]} {[%emt 00:00:26]} d6 {[%clk 00:14:58]} {[%emt 00:00:03]} 4.
h3 {[%clk 00:14:35]} {[%emt 00:00:15]} Nf6 {[%clk 00:13:44]} {[%emt 00:01:19]}
5. Nf3 {[%clk 00:14:11]} {[%emt 00:00:30]} O-O {[%clk 00:13:30]} {[%emt
00:00:18]} 6. Be3 {[%clk 00:13:51]} {[%emt 00:00:25]} a6 {[%clk 00:13:00]}
{[%emt 00:00:36]} 7. a4 {[%clk 00:13:47]} {[%emt 00:00:08]} Nc6 {[%clk
00:11:26]} {[%emt 00:01:39]} 8. Bc4 {[%clk 00:13:12]} {[%emt 00:00:41]} Nd7
{[%clk 00:09:20]} {[%emt 00:02:10]} 9. a5 {[%clk 00:11:36]} {[%emt 00:01:41]}
h6 {[%clk 00:08:11]} {[%emt 00:01:14]} 10. O-O {[%clk 00:07:49]} {[%emt
00:03:52]} e5 {[%clk 00:08:10]} {[%emt 00:00:06]} 11. Qd2 {[%clk 00:07:05]}
{[%emt 00:00:49]} Kh7 {[%clk 00:07:54]} {[%emt 00:00:21]} 12. Rfd1 {[%clk
00:06:49]} {[%emt 00:00:21]} f5 {[%clk 00:06:53]} {[%emt 00:01:07]} 13. dxe5
{[%clk 00:05:41]} {[%emt 00:01:13]} Ndxe5 {[%clk 00:06:40]} {[%emt 00:00:17]}
14. Nxe5 {[%clk 00:05:16]} {[%emt 00:00:31]} Nxe5 {[%clk 00:06:41]} {[%emt
00:00:04]} 15. Bb3 {[%clk 00:04:46]} {[%emt 00:00:34]} Qh4 {[%clk 00:05:18]}
{[%emt 00:01:28]} 16. exf5 {[%clk 00:03:23]} {[%emt 00:01:28]} Bxf5 {[%clk
00:05:17]} {[%emt 00:00:07]} 17. Ra4 {[%clk 00:03:01]} {[%emt 00:00:26]} Qd8
{[%clk 00:05:01]} {[%emt 00:00:20]} 18. Kf1 {[%clk 00:00:34]} {[%emt 00:02:33]}
Bd7 {[%clk 00:04:43]} {[%emt 00:00:23]} 19. Rb4 {[%clk 00:00:20]} {[%emt
00:00:19]} Nc6 {[%clk 00:02:52]} {[%emt 00:01:56]} 20. Ra4 {[%clk 00:00:15]}
{[%emt 00:00:10]} Rf5 {[%clk 00:02:37]} {[%emt 00:00:20]} 21. Bd5 {[%clk
00:00:16]} {[%emt 00:00:04]} Ne7 {[%clk 00:02:29]} {[%emt 00:00:13]} 22. Be4
{[%clk 00:00:18]} {[%emt 00:00:03]} Bxa4 {[%clk 00:02:27]} {[%emt 00:00:07]} 23.
Bxf5 {[%clk 00:00:21]} {[%emt 00:00:02]} Nxf5 {[%clk 00:02:25]} {[%emt
00:00:07]} 24. Nxa4 {[%clk 00:00:23]} {[%emt 00:00:03]} Qh4 {[%clk 00:02:28]}
{[%emt 00:00:02]} 25. Qe2 {[%clk 00:00:23]} {[%emt 00:00:05]} Qxa4 {[%clk
00:02:24]} {[%emt 00:00:09]} 26. Qf3 {[%clk 00:00:21]} {[%emt 00:00:07]} Rf8
{[%clk 00:02:25]} {[%emt 00:00:04]} 27. Qxb7 {[%clk 00:00:23]} {[%emt
00:00:03]} Nxe3+ {[%clk 00:02:28]} {[%emt 00:00:02]} 0-1

[Event "Elite Hotels Open 2023"]
[Site "Elite Stadshotellet, Kungsgatan 6, Vaxjo, Sweden"]
[Date "2023.02.10"]
[Round "1.10"]
[White "Golubka, Petro"]
[Black "Ramirez Leyva, Freddy"]
[Result "1-0"]
[TimeControl "15 minutes + 5 seconds per move from move one (Round 1 - 4) / 90 minutes + 30 seconds per move from move one (Round 5 - 8)"]
[WhiteTitle "GM"]
[WhiteFideId "14114224"]
[BlackFideId "5106028"]
[WhiteElo "2363"]
[BlackElo "1786"]

1. e4 {[%clk 00:15:08]} e5 {[%clk 00:14:58]} {[%emt 00:00:15]} 2. Nf3 {[%clk
00:15:05]} {[%emt 00:00:07]} Nc6 {[%clk 00:14:57]} {[%emt 00:00:05]} 3. d4
{[%clk 00:15:08]} {[%emt 00:00:03]} exd4 {[%clk 00:14:48]} {[%emt 00:00:13]} 4.
Nxd4 {[%clk 00:15:10]} {[%emt 00:00:04]} Bb4+ {[%clk 00:14:45]} {[%emt
00:00:07]} 5. c3 {[%clk 00:15:10]} {[%emt 00:00:05]} Bc5 {[%clk 00:14:47]}
{[%emt 00:00:03]} 6. Be3 {[%clk 00:15:11]} {[%emt 00:00:03]} Bb6 {[%clk
00:14:48]} {[%emt 00:00:04]} 7. Nf5 {[%clk 00:15:02]} {[%emt 00:00:15]} Bxe3
{[%clk 00:14:36]} {[%emt 00:00:18]} 8. Nxe3 {[%clk 00:15:04]} {[%emt 00:00:03]}
Nf6 {[%clk 00:14:19]} {[%emt 00:00:22]} 9. f3 {[%clk 00:15:00]} {[%emt
00:00:09]} d6 {[%clk 00:14:11]} {[%emt 00:00:13]} 10. c4 {[%clk 00:15:02]}
{[%emt 00:00:03]} O-O {[%clk 00:13:57]} {[%emt 00:00:18]} 11. Nc3 {[%clk
00:15:04]} {[%emt 00:00:03]} Re8 {[%clk 00:13:30]} {[%emt 00:00:33]} 12. Qd2
{[%clk 00:14:45]} {[%emt 00:00:24]} Be6 {[%clk 00:12:59]} {[%emt 00:00:35]} 13.
Be2 {[%clk 00:13:58]} {[%emt 00:00:52]} Qe7 {[%clk 00:11:59]} {[%emt 00:01:05]}
14. O-O {[%clk 00:13:44]} {[%emt 00:00:19]} Rad8 {[%clk 00:11:44]} {[%emt
00:00:20]} 15. Rae1 {[%clk 00:13:36]} {[%emt 00:00:13]} Ne5 {[%clk 00:11:01]}
{[%emt 00:00:48]} 16. f4 {[%clk 00:11:59]} {[%emt 00:01:43]} Neg4 {[%clk
00:10:05]} {[%emt 00:01:00]} 17. Nc2 {[%clk 00:10:13]} {[%emt 00:01:51]} h5
{[%clk 00:06:51]} {[%emt 00:03:19]} 18. b3 {[%clk 00:09:24]} {[%emt 00:00:54]}
Bd7 {[%clk 00:06:02]} {[%emt 00:00:54]} 19. Bf3 {[%clk 00:09:03]} {[%emt
00:00:27]} c6 {[%clk 00:05:06]} {[%emt 00:01:01]} 20. h3 {[%clk 00:08:42]}
{[%emt 00:00:25]} Nh6 {[%clk 00:05:08]} {[%emt 00:00:03]} 21. Qf2 {[%clk
00:08:40]} {[%emt 00:00:07]} b6 {[%clk 00:03:37]} {[%emt 00:01:37]} 22. e5
{[%clk 00:07:46]} {[%emt 00:00:59]} Nh7 {[%clk 00:03:14]} {[%emt 00:00:28]} 23.
Bxh5 {[%clk 00:06:41]} {[%emt 00:01:09]} g6 {[%clk 00:03:01]} {[%emt 00:00:18]}
24. Bf3 {[%clk 00:06:30]} {[%emt 00:00:16]} Nf5 {[%clk 00:02:29]} {[%emt
00:00:38]} 25. a4 {[%clk 00:05:14]} {[%emt 00:01:21]} dxe5 {[%clk 00:02:02]}
{[%emt 00:00:31]} 26. Rxe5 {[%clk 00:05:12]} {[%emt 00:00:08]} Qd6 {[%clk
00:01:24]} {[%emt 00:00:42]} 27. Rd1 {[%clk 00:05:06]} {[%emt 00:00:11]} Qc7
{[%clk 00:01:28]} {[%emt 00:00:02]} 28. Qe1 {[%clk 00:03:40]} {[%emt 00:01:31]}
Be6 {[%clk 00:00:59]} {[%emt 00:00:34]} 29. Rxd8 {[%clk 00:03:30]} {[%emt
00:00:15]} Rxd8 {[%clk 00:00:55]} {[%emt 00:00:10]} 30. Qe2 {[%clk 00:01:57]}
{[%emt 00:01:37]} Nd4 {[%clk 00:00:41]} {[%emt 00:00:18]} 31. Nxd4 Rxd4 {[%clk
00:00:44]} 32. Qe3 {[%clk 00:01:50]} {[%emt 00:00:14]} Rd8 {[%clk 00:00:25]}
{[%emt 00:00:23]} 33. Ne4 {[%clk 00:01:32]} {[%emt 00:00:24]} Qd7 {[%clk
00:00:21]} {[%emt 00:00:10]} 34. Nf2 {[%clk 00:01:09]} {[%emt 00:00:27]} Nf8
{[%clk 00:00:14]} {[%emt 00:00:12]} 35. Bg4 {[%clk 00:00:52]} {[%emt 00:00:21]}
c5 {[%clk 00:00:13]} {[%emt 00:00:06]} 36. Qg3 {[%clk 00:00:40]} {[%emt
00:00:17]} Qd4 {[%clk 00:00:13]} {[%emt 00:00:04]} 37. h4 {[%clk 00:00:37]}
{[%emt 00:00:08]} Qa1+ {[%clk 00:00:10]} {[%emt 00:00:08]} 38. Kh2 {[%clk
00:00:39]} {[%emt 00:00:04]} Rd2 {[%clk 00:00:10]} {[%emt 00:00:05]} 39. Ne4
{[%clk 00:00:27]} {[%emt 00:00:16]} Rd1 {[%clk 00:00:07]} {[%emt 00:00:08]} 40.
Bxd1 {[%clk 00:00:30]} {[%emt 00:00:02]} Qxd1 {[%clk 00:00:11]} {[%emt
00:00:01]} 41. h5 {[%clk 00:00:34]} {[%emt 00:00:02]} Qd8 {[%clk 00:00:06]}
{[%emt 00:00:10]} 42. hxg6 {[%clk 00:00:31]} {[%emt 00:00:08]} fxg6 {[%clk
00:00:08]} {[%emt 00:00:02]} 43. f5 {[%clk 00:00:21]} {[%emt 00:00:15]} Bf7
{[%clk 00:00:08]} {[%emt 00:00:05]} 44. f6 {[%clk 00:00:18]} {[%emt 00:00:08]}
Qd4 {[%clk 00:15:05]} {[%emt 00:00:08]} 1-0

[Event "Elite Hotels Open 2023"]
[Site "Elite Stadshotellet, Kungsgatan 6, Vaxjo, Sweden"]
[Date "2023.02.10"]
[Round "1.11"]
[White "Gerdes, Sebastian"]
[Black "Lindberg, Bengt"]
[Result "1/2-1/2"]
[TimeControl "15 minutes + 5 seconds per move from move one (Round 1 - 4) / 90 minutes + 30 seconds per move from move one (Round 5 - 8)"]
[BlackTitle "IM"]
[WhiteFideId "1745697"]
[BlackFideId "1700359"]
[WhiteElo "1782"]
[BlackElo "2354"]

1. c4 {[%clk 00:15:05]} {[%emt 00:00:04]} Nf6 {[%clk 00:15:08]} {[%emt
00:00:02]} 2. Nc3 {[%clk 00:15:07]} {[%emt 00:00:04]} c5 {[%clk 00:15:09]}
{[%emt 00:00:03]} 3. g3 {[%clk 00:15:09]} {[%emt 00:00:03]} e6 {[%clk
00:15:10]} {[%emt 00:00:03]} 4. Bg2 {[%clk 00:14:47]} {[%emt 00:00:27]} d5
{[%clk 00:15:12]} {[%emt 00:00:04]} 5. cxd5 {[%clk 00:14:41]} {[%emt 00:00:12]}
exd5 {[%clk 00:15:14]} {[%emt 00:00:03]} 6. d4 {[%clk 00:14:44]} {[%emt
00:00:01]} cxd4 {[%clk 00:15:17]} {[%emt 00:00:02]} 7. Qxd4 {[%clk 00:14:38]}
{[%emt 00:00:12]} Nc6 {[%clk 00:15:20]} {[%emt 00:00:02]} 8. Qa4 {[%clk
00:14:40]} {[%emt 00:00:01]} d4 {[%clk 00:15:22]} {[%emt 00:00:04]} 9. Ne4
{[%clk 00:13:56]} {[%emt 00:00:48]} Nxe4 {[%clk 00:15:06]} {[%emt 00:00:21]} 10.
Bxe4 {[%clk 00:13:50]} {[%emt 00:00:12]} Bb4+ {[%clk 00:15:03]} {[%emt
00:00:07]} 11. Kf1 {[%clk 00:13:45]} {[%emt 00:00:11]} Qb6 {[%clk 00:13:59]}
{[%emt 00:01:08]} 12. a3 {[%clk 00:13:03]} {[%emt 00:00:48]} Be7 {[%clk
00:13:36]} {[%emt 00:00:27]} 13. Kg2 {[%clk 00:12:42]} {[%emt 00:00:26]} O-O
{[%clk 00:13:02]} {[%emt 00:00:40]} 14. Nf3 {[%clk 00:12:45]} {[%emt 00:00:02]}
Bf6 {[%clk 00:11:17]} {[%emt 00:01:50]} 15. Qc2 {[%clk 00:12:32]} {[%emt
00:00:18]} h6 {[%clk 00:11:09]} {[%emt 00:00:12]} 16. Bf4 {[%clk 00:12:21]}
{[%emt 00:00:16]} Be6 {[%clk 00:11:02]} {[%emt 00:00:12]} 17. Bd6 {[%clk
00:12:01]} {[%emt 00:00:26]} Rfc8 {[%clk 00:10:51]} {[%emt 00:00:16]} 18. Qd2
{[%clk 00:11:42]} {[%emt 00:00:24]} Rd8 {[%clk 00:08:34]} {[%emt 00:02:22]} 19.
Bf4 {[%clk 00:11:43]} {[%emt 00:00:04]} Bd5 {[%clk 00:07:08]} {[%emt 00:01:31]}
20. Bxd5 {[%clk 00:11:08]} {[%emt 00:00:40]} Rxd5 {[%clk 00:07:11]} {[%emt
00:00:02]} 21. b4 {[%clk 00:11:11]} {[%emt 00:00:02]} Rad8 {[%clk 00:06:39]}
{[%emt 00:00:37]} 22. Rac1 {[%clk 00:11:05]} {[%emt 00:00:11]} g5 {[%clk
00:06:26]} {[%emt 00:00:18]} 23. e4 {[%clk 00:10:05]} {[%emt 00:01:05]} dxe3 24.
Bxe3 {[%clk 00:10:09]} Rxd2 {[%clk 00:04:57]} {[%emt 00:00:29]} 25. Bxb6 {[%clk
00:10:12]} {[%emt 00:00:02]} axb6 {[%clk 00:04:58]} {[%emt 00:00:04]} 26. Nxd2
{[%clk 00:10:14]} {[%emt 00:00:02]} Rxd2 {[%clk 00:05:01]} {[%emt 00:00:02]} 27.
b5 {[%clk 00:10:08]} {[%emt 00:00:11]} Nd4 {[%clk 00:04:27]} {[%emt 00:00:39]}
28. Rhd1 {[%clk 00:09:56]} {[%emt 00:00:18]} Ra2 {[%clk 00:04:17]} {[%emt
00:00:13]} 29. Rc4 {[%clk 00:09:55]} {[%emt 00:00:07]} Nxb5 {[%clk 00:03:46]}
{[%emt 00:00:36]} 30. a4 {[%clk 00:09:49]} {[%emt 00:00:11]} Nc3 {[%clk
00:03:49]} {[%emt 00:00:02]} 31. Rd6 {[%clk 00:09:47]} {[%emt 00:00:08]} Nd5
{[%clk 00:03:28]} {[%emt 00:00:26]} 32. Rxd5 {[%clk 00:09:44]} {[%emt
00:00:08]} Be7 {[%clk 00:03:30]} {[%emt 00:00:02]} 33. a5 {[%clk 00:08:58]}
{[%emt 00:00:52]} Bc5 {[%clk 00:02:40]} {[%emt 00:00:53]} 34. Rdxc5 {[%clk
00:09:01]} {[%emt 00:00:03]} 1/2-1/2

[Event "Elite Hotels Open 2023"]
[Site "Elite Stadshotellet, Kungsgatan 6, Vaxjo, Sweden"]
[Date "2023.02.10"]
[Round "1.12"]
[White "Poley, Vladimir"]
[Black "Ohlsson, Mikael"]
[Result "1-0"]
[TimeControl "15 minutes + 5 seconds per move from move one (Round 1 - 4) / 90 minutes + 30 seconds per move from move one (Round 5 - 8)"]
[WhiteTitle "IM"]
[WhiteFideId "13500090"]
[BlackFideId "1719700"]
[WhiteElo "2325"]
[BlackElo "1779"]

1. Nf3 {[%clk 00:15:07]} {[%emt 00:00:03]} c5 {[%clk 00:15:07]} {[%emt
00:00:03]} 2. g3 {[%clk 00:15:11]} {[%emt 00:00:01]} Nc6 {[%clk 00:15:10]}
{[%emt 00:00:03]} 3. Bg2 {[%clk 00:15:14]} {[%emt 00:00:01]} b6 {[%clk
00:15:06]} {[%emt 00:00:09]} 4. O-O {[%clk 00:14:59]} {[%emt 00:00:20]} Bb7
{[%clk 00:15:10]} {[%emt 00:00:02]} 5. c4 {[%clk 00:15:02]} {[%emt 00:00:03]}
Nf6 {[%clk 00:15:01]} {[%emt 00:00:13]} 6. b3 {[%clk 00:15:02]} {[%emt
00:00:05]} e6 {[%clk 00:14:49]} {[%emt 00:00:17]} 7. Bb2 {[%clk 00:15:05]}
{[%emt 00:00:02]} Be7 {[%clk 00:14:49]} {[%emt 00:00:05]} 8. Re1 {[%clk
00:14:56]} {[%emt 00:00:14]} O-O {[%clk 00:14:38]} {[%emt 00:00:15]} 9. e4
{[%clk 00:14:58]} {[%emt 00:00:03]} d6 {[%clk 00:14:32]} {[%emt 00:00:12]} 10.
d4 {[%clk 00:14:52]} {[%emt 00:00:10]} cxd4 {[%clk 00:14:31]} {[%emt 00:00:06]}
11. Nxd4 {[%clk 00:14:55]} {[%emt 00:00:02]} Qc7 {[%clk 00:14:01]} {[%emt
00:00:35]} 12. Nc3 {[%clk 00:14:52]} {[%emt 00:00:08]} Nxd4 {[%clk 00:13:25]}
{[%emt 00:00:42]} 13. Qxd4 {[%clk 00:14:55]} {[%emt 00:00:02]} Rad8 {[%clk
00:13:26]} {[%emt 00:00:03]} 14. Rad1 {[%clk 00:14:38]} {[%emt 00:00:22]} a6
{[%clk 00:11:46]} {[%emt 00:01:46]} 15. g4 {[%clk 00:14:40]} {[%emt 00:00:03]}
Qc5 {[%clk 00:11:34]} {[%emt 00:00:17]} 16. Qxc5 {[%clk 00:14:38]} {[%emt
00:00:06]} dxc5 {[%clk 00:11:36]} {[%emt 00:00:04]} 17. e5 {[%clk 00:14:33]}
{[%emt 00:00:10]} Bxg2 {[%clk 00:11:34]} {[%emt 00:00:06]} 18. exf6 {[%clk
00:14:35]} {[%emt 00:00:03]} Rxd1 {[%clk 00:11:29]} {[%emt 00:00:11]} 19. Rxd1
{[%clk 00:14:38]} {[%emt 00:00:02]} Bf3 {[%clk 00:10:57]} {[%emt 00:00:38]} 20.
fxe7 {[%clk 00:14:39]} {[%emt 00:00:02]} Re8 {[%clk 00:10:55]} {[%emt
00:00:08]} 21. Rd8 {[%clk 00:14:41]} {[%emt 00:00:03]} 1-0